fUST/lending_fUST_20250802
["ID","MTS","AMOUNT","RATE_DAILY","PERIOD"]
[376701492,1754085047598,-1261.87,0.00024456,2]
[376701493,1754085047607,-4316.61,0.00024456,2]
[376701494,1754085047617,-615.8,0.00024456,2]
[376701495,1754085047626,-460.0,0.00024456,2]
[376701496,1754085047636,-1042.65,0.00024456,2]
[376701497,1754085047645,-1710.22,0.00024457,2]
[376701498,1754085047654,-1049.23,0.00024457,2]
[376701499,1754085047664,-2507.73,0.00024457,2]
[376701500,1754085047673,-211.61,0.0002447,7]
[376701501,1754085047684,-12644.26590849,0.0002448,7]
[376701502,1754085047693,-160.0,0.0002448,7]
[376701503,1754085047702,-150.0,0.00024488,2]
[376701504,1754085047712,-151.0,0.000245,8]
[376701505,1754085047721,-211.61,0.00024507,7]
[376701506,1754085047731,-9203.50265199,0.00024556,2]
[376701507,1754085047743,-294.5,0.0002456,2]
[376701508,1754085047753,-10499.99999901,0.000246,2]
[376701509,1754085047763,-500.0,0.00024629,2]
[376701510,1754085047772,-751.0,0.0002464,6]
[376701511,1754085047782,-460.0,0.00024727,2]
[376701512,1754085047792,-681.66,0.00024727,2]
[376701513,1754085047802,-460.0,0.00024728,2]
[376701514,1754085047812,-674.79,0.00024728,2]
[376701515,1754085047821,-6065.18,0.0002473,2]
[376701516,1754085047831,-1261.87,0.0002473,2]
[376701517,1754085047840,-4316.61,0.0002473,2]
[376701518,1754085047850,-151.0,0.0002473,7]
[376701519,1754085047861,-615.8,0.0002473,2]
[376701520,1754085047870,-460.0,0.0002473,2]
[376701521,1754085047879,-1042.65,0.0002473,2]
[376701522,1754085047888,-1710.22,0.00024731,2]
[376701523,1754085047897,-1049.23,0.00024731,2]
[376701524,1754085047907,-2507.73,0.00024731,2]
[376701525,1754085047916,-171.22213563,0.000248,2]
[376701526,1754085047926,-151.0,0.000248,7]
[376701527,1754085047936,-1263.33164968,0.0002485,2]
[376701528,1754085047945,-967.47776126,0.00024858,2]
[376701529,1754085047955,-151.0,0.000249,7]
[376701530,1754085047965,-151.0,0.000249,7]
[376701531,1754085047974,-152.144064,0.000249,7]
[376701532,1754085047983,-67183.07754109,0.000249,2]
[376701533,1754085047995,-1581.3699457,0.000249,2]
[376701534,1754085048006,-460.0,0.000249,2]
[376701535,1754085048063,-460.0,0.00019251,2]
[376701536,1754085048073,-460.0,0.00020347,2]
[376701537,1754085048082,-260.9,0.00020621,2]
[376701538,1754085048176,-460.0,0.00019251,2]
[376701539,1754085048187,-460.0,0.00019525,2]
[376701540,1754085048197,-460.0,0.00019799,2]
[376701541,1754085048207,-460.0,0.00020073,2]
[376701542,1754085048216,-199.1,0.00020621,2]
[376701543,1754085048225,-1108.26894793,0.00020784,10]
[376701544,1754085098434,5000.0,0.000192,2]
[376701545,1754085117420,397.2553578,0.00019071,2]
[376701546,1754085125071,3152.0961569,0.00019052,2]
[376701547,1754085160207,1912.3081558,0.00018599,2]
[376701548,1754085180263,24900.0,0.000185,2]
[376701577,1754085262043,3007.59853245,0.00019149,2]
[376701578,1754085275753,5821.4404879,0.00018495,2]
[376701638,1754085326570,671.01414191,0.00019151,2]
[376701686,1754085409867,537.976355,0.00018419,2]
[376701706,1754085454850,498.26063049,0.00018287,2]
[376701707,1754085455206,249.13031524,0.00018288,2]
[376701708,1754085461337,199.8233518,0.00018351,2]
[376701721,1754085521701,587.13737411,0.00019151,2]
[376701723,1754085581838,163.572923,0.00013699,2]
[376701743,1754085722616,513.74520239,0.0001915,2]
[376701745,1754085756525,165.632026,0.00018672,2]
[376701746,1754085756873,415.44461748,0.00018672,2]
[376701747,1754085757257,207.72230874,0.00018673,2]
[376701748,1754085871453,-148706.12885231,0.00027109,20]
[376701749,1754085871477,-3851293.87114769,0.00027109,20]
[376701750,1754085886465,-3204118.44684117,0.00027109,20]
[376701751,1754085886490,-795881.55315883,0.00027109,20]
[376701753,1754085898244,-4000000.0,0.00027109,20]
[376701754,1754085968421,607.44350831,0.0001915,2]
[376701794,1754086039778,315.7812952,0.0001825,2]
[376701819,1754086058516,182.7410496,0.00018672,2]
[376703038,1754086111542,10000.0,0.0001825,2]
[376703039,1754086144977,-4000000.0,0.00027108,20]
[376703809,1754086232312,-1068.0,0.00019246,2]
[376703811,1754086232323,-40.34526944,0.00019246,2]
[376703813,1754086232338,-259.65473056,0.00019246,2]
[376703814,1754086232350,-300.0,0.00019246,2]
[376703815,1754086232362,-1200.0,0.00019246,2]
[376703816,1754086232375,-300.0,0.00019246,2]
[376703817,1754086232387,-160.0,0.00019246,2]
[376703818,1754086232398,-2830.9051073,0.00019248,2]
[376703820,1754086232409,-460.0,0.00019248,2]
[376703821,1754086232422,-460.0,0.00019248,2]
[376703822,1754086232439,-460.0,0.00019248,2]
[376703824,1754086232450,-460.0,0.00019248,2]
[376703826,1754086232462,-460.0,0.00019248,2]
[376703829,1754086232472,-472.39,0.00019248,2]
[376703831,1754086232483,-460.0,0.00019248,2]
[376703833,1754086232494,-460.0,0.00019248,2]
[376703835,1754086232505,-514.29,0.00019248,2]
[376703837,1754086232515,-610.19,0.00019248,2]
[376703839,1754086232526,-460.0,0.00019248,2]
[376703841,1754086232537,-460.0,0.00019248,2]
[376703842,1754086232549,-578.56,0.00019248,2]
[376703843,1754086232560,-993.16,0.00019248,2]
[376703844,1754086232571,-460.0,0.00019248,2]
[376703845,1754086232581,-574.62,0.00019248,2]
[376703846,1754086232592,-460.0,0.00019248,2]
[376703847,1754086232602,-460.0,0.00019248,2]
[376703848,1754086232612,-293.65114849,0.00019248,2]
[376703849,1754086232622,-723.79,0.00019248,2]
[376703850,1754086232633,-460.0,0.00019249,2]
[376703851,1754086232644,-460.0,0.00019249,2]
[376703853,1754086232654,-460.0,0.00019249,2]
[376703854,1754086232665,-316.57563118,0.00019249,2]
[376703855,1754086232678,-460.0,0.00019249,2]
[376703857,1754086232689,-460.0,0.00019249,2]
[376703858,1754086232700,-460.0,0.00019249,2]
[376703860,1754086232711,-460.0,0.00019249,2]
[376703862,1754086232723,-460.0,0.00019249,2]
[376703864,1754086232733,-460.0,0.00019249,2]
[376703866,1754086232745,-460.0,0.00019249,2]
[376703868,1754086232756,-460.0,0.00019249,2]
[376703870,1754086232767,-460.0,0.00019249,2]
[376703872,1754086232778,-460.0,0.00019249,2]
[376703874,1754086232790,-460.0,0.00019249,2]
[376703876,1754086232801,-378.812162,0.00019249,2]
[376703879,1754086232813,-460.0,0.00019249,2]
[376703880,1754086232824,-391.33105799,0.00019249,2]
[376703882,1754086232834,-460.0,0.00019249,2]
[376703883,1754086232844,-460.0,0.00019249,2]
[376703884,1754086232854,-394.30047243,0.00019249,2]
[376703885,1754086232864,-460.0,0.00019249,2]
[376703886,1754086232874,-460.0,0.00019249,2]
[376703887,1754086232884,-460.0,0.00019249,2]
[376703888,1754086232895,-460.0,0.00019249,2]
[376703889,1754086232907,-460.0,0.00019249,2]
[376703890,1754086232919,-460.0,0.00019249,2]
[376703891,1754086232933,-280.0,0.00019249,2]
[376703892,1754086232945,-460.0,0.00019249,2]
[376703893,1754086232955,-468.3047195,0.00019249,2]
[376703894,1754086232965,-460.0,0.00019249,2]
[376703895,1754086232976,-460.0,0.00019249,2]
[376703896,1754086232986,-460.0,0.00019249,2]
[376703898,1754086232997,-460.0,0.00019249,2]
[376703899,1754086233007,-460.0,0.00019249,2]
[376703900,1754086233018,-460.0,0.00019249,2]
[376703901,1754086233029,-460.0,0.00019249,2]
[376703902,1754086233039,-460.0,0.00019249,2]
[376703903,1754086233049,-460.0,0.00019249,2]
[376703904,1754086233059,-460.0,0.00019249,2]
[376703905,1754086233069,-460.0,0.00019249,2]
[376703907,1754086233080,-603.96312297,0.00019249,2]
[376703908,1754086233093,-460.0,0.00019249,2]
[376703909,1754086233104,-460.0,0.00019249,2]
[376703910,1754086233114,-429.72747437,0.00019249,2]
[376703911,1754086233139,-30.27252563,0.00019249,2]
[376703912,1754086233150,-395.90747437,0.00019249,2]
[376703913,1754086233163,-64.09252563,0.00019249,2]
[376703914,1754086233174,-460.0,0.00019249,2]
[376703915,1754086233186,-3324.66,0.00019249,2]
[376703916,1754086233197,-460.0,0.00019249,2]
[376703917,1754086233208,-460.0,0.00019249,2]
[376703918,1754086233219,-460.0,0.00019249,2]
[376703919,1754086233230,-460.0,0.00019249,2]
[376703920,1754086233240,-460.0,0.00019249,2]
[376703921,1754086233251,-460.0,0.00019249,2]
[376703922,1754086233261,-460.0,0.00019249,2]
[376703923,1754086233272,-464.39608282,0.00019249,2]
[376703924,1754086233284,-460.0,0.00019249,2]
[376703925,1754086233295,-460.0,0.00019249,2]
[376703926,1754086233305,-460.0,0.00019249,2]
[376703927,1754086233316,-460.0,0.00019249,2]
[376703928,1754086233327,-400.0,0.00019249,2]
[376703929,1754086233338,-80.3922246,0.00019249,2]
[376703931,1754086233351,-77.90373835,0.00019249,2]
[376703932,1754086233362,-532.79,0.00019249,2]
[376703933,1754086233373,-460.0,0.00019249,2]
[376703934,1754086233384,-460.0,0.00019249,2]
[376703935,1754086233394,-460.0,0.00019249,2]
[376703936,1754086233405,-460.0,0.00019249,2]
[376703937,1754086233415,-460.0,0.00019249,2]
[376703938,1754086233425,-460.0,0.00019249,2]
[376703939,1754086233439,-460.0,0.00019249,2]
[376703940,1754086233450,-460.0,0.00019249,2]
[376703941,1754086233461,-460.0,0.00019249,2]
[376703942,1754086233472,-460.0,0.00019249,2]
[376703943,1754086233484,-479.46,0.00019249,2]
[376703944,1754086233495,-356.85626165,0.00019249,2]
[376703987,1754086238815,-103.14373835,0.00019249,2]
[376703988,1754086238826,-460.0,0.00019249,2]
[376703989,1754086238835,-460.0,0.00019249,2]
[376703990,1754086238844,-536.7,0.00019249,2]
[376703991,1754086238853,-460.0,0.00019249,2]
[376703992,1754086238862,-460.0,0.00019249,2]
[376703993,1754086238871,-464.6,0.00019249,2]
[376703994,1754086238882,-460.0,0.00019249,2]
[376703995,1754086238891,-460.0,0.00019249,2]
[376703996,1754086238899,-460.0,0.00019249,2]
[376703997,1754086238907,-186.4,0.00019249,2]
[376703998,1754086238916,-226.28167786,0.00019249,2]
[376703999,1754086238924,-460.0,0.00019249,2]
[376704000,1754086238935,-460.0,0.00019249,2]
[376704001,1754086238944,-528.40771759,0.00019249,2]
[376704002,1754086238953,-1879.46,0.00019249,2]
[376704003,1754086238963,-397.99319594,0.00019249,2]
[376704004,1754086238972,-460.0,0.00019249,2]
[376704005,1754086238982,-460.0,0.00019249,2]
[376704006,1754086238992,-460.0,0.00019249,2]
[376704007,1754086239002,-654.24,0.00019249,2]
[376704008,1754086239012,-1133.61,0.00019249,2]
[376704009,1754086239021,-554.29,0.00019249,2]
[376704010,1754086239031,-460.0,0.00019249,2]
[376704011,1754086239040,-460.0,0.00019249,2]
[376704012,1754086239051,-460.0,0.00019249,2]
[376704013,1754086239060,-460.0,0.0001925,2]
[376704014,1754086239069,-460.0,0.0001925,2]
[376704015,1754086239079,-460.0,0.0001925,2]
[376704017,1754086239092,-155.95801313,0.0001925,2]
[376704018,1754086239102,-460.0,0.0001925,2]
[376704020,1754086239111,-460.0,0.0001925,2]
[376704022,1754086239121,-460.0,0.0001925,2]
[376704024,1754086239131,-460.0,0.0001925,2]
[376704026,1754086239140,-460.0,0.0001925,2]
[376704028,1754086239149,-151.0,0.0001925,2]
[376704030,1754086239159,-460.0,0.0001925,2]
[376704031,1754086239169,-151.0,0.0001925,2]
[376704033,1754086239181,-255.98645579,0.0001925,2]
[376704035,1754086239191,-151.0,0.0001925,2]
[376704037,1754086239200,-151.0,0.0001925,2]
[376704039,1754086239209,-151.0,0.0001925,2]
[376704041,1754086239219,-151.0,0.0001925,2]
[376704043,1754086239228,-151.0,0.0001925,2]
[376704045,1754086239237,-151.0,0.0001925,2]
[376704047,1754086239247,-460.0,0.0001925,2]
[376704048,1754086239256,-151.0,0.0001925,2]
[376704049,1754086239265,-151.0,0.0001925,2]
[376704050,1754086239274,-151.0,0.0001925,2]
[376704051,1754086239283,-151.27172784,0.0001925,2]
[376704052,1754086239292,-151.6526071,0.0001925,2]
[376704053,1754086239301,-151.52062609,0.0001925,2]
[376704055,1754086239311,-460.0,0.0001925,2]
[376704057,1754086239320,-460.0,0.0001925,2]
[376704058,1754086239330,-590.71,0.0001925,2]
[376704059,1754086239339,-460.0,0.0001925,2]
[376704060,1754086239348,-460.0,0.0001925,2]
[376704061,1754086239358,-500.0,0.0001925,2]
[376704062,1754086239367,-460.0,0.0001925,2]
[376704063,1754086239376,-460.0,0.0001925,2]
[376704065,1754086239387,-460.0,0.0001925,2]
[376704066,1754086239396,-460.0,0.0001925,2]
[376704067,1754086239406,-713.0,0.0001925,2]
[376704068,1754086239415,-460.0,0.0001925,2]
[376704070,1754086239439,-151.0,0.0001925,2]
[376704072,1754086239450,-151.0,0.0001925,2]
[376704074,1754086239460,-460.0,0.0001925,2]
[376704076,1754086239470,-151.0,0.0001925,2]
[376704078,1754086239480,-151.0,0.0001925,2]
[376704080,1754086239490,-151.0,0.0001925,2]
[376704083,1754086239500,-460.0,0.0001925,2]
[376704085,1754086239509,-460.0,0.0001925,2]
[376704088,1754086239519,-995.28,0.0001925,2]
[376704090,1754086239529,-460.0,0.0001925,2]
[376704092,1754086239538,-460.0,0.0001925,2]
[376704094,1754086239548,-460.0,0.0001925,2]
[376704096,1754086239557,-460.0,0.0001925,2]
[376704098,1754086239567,-460.0,0.0001925,2]
[376704100,1754086239576,-460.0,0.0001925,2]
[376704102,1754086239586,-851.52,0.0001925,2]
[376704104,1754086239597,-460.0,0.0001925,2]
[376704106,1754086239607,-460.0,0.00019251,2]
[376704108,1754086239617,-460.0,0.00019251,2]
[376704110,1754086239627,-460.0,0.00019251,2]
[376704113,1754086239636,-460.0,0.00019251,2]
[376704116,1754086239646,-501.54383892,0.00019251,2]
[376704119,1754086239656,-384.83249939,0.00019251,2]
[376704121,1754086239666,-460.0,0.00019251,2]
[376704124,1754086239676,-460.88251901,0.00019251,2]
[376704125,1754086239687,-460.0,0.00019251,2]
[376704127,1754086239697,-460.0,0.00019251,2]
[376704129,1754086239707,-800.02,0.00019251,2]
[376704131,1754086239717,-193.49555226,0.00019425,2]
[376704134,1754086239727,-182.87869568,0.00019511,2]
[376704136,1754086239736,-1007.83,0.00019513,3]
[376704139,1754086239746,-503.92,0.00019513,3]
[376704140,1754086239756,-251.96,0.00019513,3]
[376704142,1754086239765,-755.88,0.00019513,3]
[376704145,1754086239776,-493.65,0.00019521,2]
[376704147,1754086239786,-460.0,0.00019521,2]
[376704148,1754086239795,-460.0,0.00019521,2]
[376704151,1754086239805,-500.0,0.00019521,2]
[376704152,1754086239814,-460.0,0.00019521,2]
[376704155,1754086239823,-460.0,0.00019521,2]
[376704156,1754086239833,-461.52954051,0.00019521,2]
[376704158,1754086239842,-460.0,0.00019521,2]
[376704160,1754086239851,-460.0,0.00019521,2]
[376704164,1754086239861,-460.0,0.00019521,2]
[376704165,1754086239871,-460.0,0.00019521,2]
[376704167,1754086239880,-460.0,0.00019521,2]
[376704169,1754086239889,-460.0,0.00019521,2]
[376704171,1754086239899,-460.0,0.00019521,2]
[376704174,1754086239909,-374.99830761,0.00019521,2]
[376704176,1754086239918,-460.0,0.00019521,2]
[376704178,1754086239928,-529.23843928,0.00019521,2]
[376704180,1754086239939,-460.0,0.00019521,2]
[376704182,1754086239948,-460.0,0.00019521,2]
[376704184,1754086239958,-460.0,0.00019521,2]
[376704185,1754086239967,-460.0,0.00019521,2]
[376704187,1754086239977,-460.0,0.00019521,2]
[376704189,1754086239986,-460.0,0.00019521,2]
[376704192,1754086239996,-460.0,0.00019521,2]
[376704194,1754086240008,-460.0,0.00019521,2]
[376704196,1754086240017,-262.10867834,0.00019521,2]
[376704198,1754086240027,-453.1717647,0.00019521,2]
[376704200,1754086240037,-460.0,0.00019521,2]
[376704202,1754086240046,-460.0,0.00019521,2]
[376704204,1754086240055,-460.0,0.00019521,2]
[376704206,1754086240064,-460.0,0.00019521,2]
[376704208,1754086240074,-460.0,0.00019521,2]
[376704210,1754086240085,-460.0,0.00019521,2]
[376704212,1754086240094,-236.0456056,0.00019521,2]
[376704214,1754086240103,-460.0,0.00019521,2]
[376704216,1754086240113,-460.0,0.00019521,2]
[376704218,1754086240123,-460.0,0.00019521,2]
[376704220,1754086240133,-460.0,0.00019521,2]
[376704222,1754086240142,-460.0,0.00019521,2]
[376704224,1754086240151,-373.46,0.00019521,2]
[376704226,1754086240162,-460.0,0.00019521,2]
[376704227,1754086240171,-460.0,0.00019521,2]
[376704230,1754086240182,-460.0,0.00019521,2]
[376704232,1754086240191,-460.0,0.00019521,2]
[376704233,1754086240200,-460.0,0.00019521,2]
[376704236,1754086240209,-460.0,0.00019521,2]
[376704238,1754086240220,-460.0,0.00019521,2]
[376704240,1754086240229,-271.36092719,0.00019521,2]
[376704242,1754086240238,-460.0,0.00019521,2]
[376704244,1754086240249,-462.08266192,0.00019521,2]
[376704246,1754086240259,-460.0,0.00019521,2]
[376704247,1754086240268,-500.0,0.00019521,2]
[376704249,1754086240278,-460.0,0.00019521,2]
[376704252,1754086240287,-500.0,0.00019521,2]
[376704254,1754086240297,-460.0,0.00019521,2]
[376704256,1754086240306,-460.0,0.00019521,2]
[376704258,1754086240316,-244.65884837,0.00019521,2]
[376704260,1754086240325,-460.0,0.00019521,2]
[376704262,1754086240335,-460.0,0.00019521,2]
[376704264,1754086240344,-460.0,0.00019521,2]
[376704266,1754086240353,-460.0,0.00019521,2]
[376704268,1754086240362,-460.0,0.00019521,2]
[376704270,1754086240371,-460.0,0.00019521,2]
[376704272,1754086240380,-460.0,0.00019521,2]
[376704274,1754086240390,-460.0,0.00019521,2]
[376704276,1754086240399,-460.0,0.00019521,2]
[376704278,1754086240408,-460.0,0.00019521,2]
[376704280,1754086240417,-460.0,0.00019521,2]
[376704282,1754086240426,-460.0,0.00019522,2]
[376704284,1754086240437,-460.0,0.00019522,2]
[376704286,1754086240446,-460.0,0.00019522,2]
[376704288,1754086240455,-460.0,0.00019522,2]
[376704290,1754086240464,-460.0,0.00019522,2]
[376704292,1754086240474,-460.0,0.00019522,2]
[376704294,1754086240483,-472.39,0.00019522,2]
[376704296,1754086240492,-460.0,0.00019522,2]
[376704299,1754086240504,-460.0,0.00019522,2]
[376704301,1754086240514,-514.29,0.00019522,2]
[376704303,1754086240523,-610.19,0.00019522,2]
[376704305,1754086240532,-460.0,0.00019522,2]
[376704307,1754086240541,-460.0,0.00019522,2]
[376704309,1754086240551,-578.56,0.00019522,2]
[376704311,1754086240560,-993.16,0.00019522,2]
[376704313,1754086240569,-460.0,0.00019522,2]
[376704315,1754086240578,-574.62,0.00019522,2]
[376704317,1754086240588,-460.0,0.00019522,2]
[376704319,1754086240598,-460.0,0.00019522,2]
[376704321,1754086240608,-723.79,0.00019522,2]
[376704323,1754086240617,-500.0,0.00019522,2]
[376704325,1754086240627,-177.26217106,0.00019522,2]
[376704327,1754086240636,-176.75141025,0.00019522,2]
[376704329,1754086240646,-449.67267393,0.00019523,2]
[376704331,1754086240657,-460.0,0.00019523,2]
[376704333,1754086240667,-172.80804998,0.00019523,2]
[376704335,1754086240676,-461.55921139,0.00019523,2]
[376704337,1754086240687,-215.42761873,0.00019523,2]
[376704339,1754086240696,-602.51497101,0.00019523,2]
[376704341,1754086240705,-175.5545931,0.00019523,2]
[376704343,1754086240715,-460.0,0.00019523,2]
[376704345,1754086240724,-460.0,0.00019523,2]
[376704347,1754086240733,-460.0,0.00019523,2]
[376704349,1754086240743,-437.54887382,0.00019523,2]
[376704351,1754086240752,-166.9578826,0.00019523,2]
[376704353,1754086240762,-460.0,0.00019523,2]
[376704355,1754086240771,-460.0,0.00019523,2]
[376704357,1754086240780,-460.0,0.00019523,2]
[376704359,1754086240791,-460.0,0.00019523,2]
[376704361,1754086240800,-460.0,0.00019523,2]
[376704363,1754086240809,-460.0,0.00019523,2]
[376704365,1754086240819,-460.0,0.00019523,2]
[376704367,1754086240828,-460.0,0.00019523,2]
[376704369,1754086240838,-460.0,0.00019523,2]
[376704371,1754086240847,-606.90097164,0.00019523,2]
[376704373,1754086240856,-335.22830016,0.00019523,2]
[376704375,1754086240865,-460.0,0.00019523,2]
[376704377,1754086240875,-460.0,0.00019523,2]
[376704379,1754086240884,-460.0,0.00019523,2]
[376704381,1754086240894,-460.0,0.00019523,2]
[376704383,1754086240903,-460.0,0.00019523,2]
[376704385,1754086240912,-460.0,0.00019523,2]
[376704387,1754086240921,-460.0,0.00019523,2]
[376704389,1754086240931,-460.0,0.00019523,2]
[376704391,1754086240941,-460.0,0.00019523,2]
[376704394,1754086240951,-460.0,0.00019523,2]
[376704397,1754086240960,-460.0,0.00019523,2]
[376704400,1754086240969,-460.0,0.00019523,2]
[376704402,1754086240978,-3324.66,0.00019523,2]
[376704404,1754086240987,-460.0,0.00019523,2]
[376704406,1754086240997,-443.14749529,0.00019523,2]
[376704408,1754086241006,-460.0,0.00019523,2]
[376704410,1754086241015,-460.0,0.00019523,2]
[376704412,1754086241024,-460.0,0.00019523,2]
[376704414,1754086241032,-460.0,0.00019523,2]
[376704416,1754086241042,-460.0,0.00019523,2]
[376704418,1754086241052,-460.0,0.00019523,2]
[376704420,1754086241061,-460.0,0.00019523,2]
[376704422,1754086241070,-460.0,0.00019523,2]
[376704424,1754086241082,-460.0,0.00019523,2]
[376704426,1754086241093,-532.79,0.00019523,2]
[376704428,1754086241102,-460.0,0.00019523,2]
[376704430,1754086241111,-460.0,0.00019523,2]
[376704432,1754086241120,-460.0,0.00019523,2]
[376704434,1754086241131,-460.0,0.00019523,2]
[376704436,1754086241140,-460.0,0.00019523,2]
[376704438,1754086241149,-460.0,0.00019523,2]
[376704440,1754086241160,-460.0,0.00019523,2]
[376704442,1754086241169,-460.0,0.00019523,2]
[376704444,1754086241178,-460.0,0.00019523,2]
[376704446,1754086241190,-460.0,0.00019523,2]
[376704448,1754086241199,-460.0,0.00019523,2]
[376704450,1754086241208,-460.0,0.00019523,2]
[376704452,1754086241217,-348.73921326,0.00019523,2]
[376704454,1754086241226,-460.0,0.00019523,2]
[376704456,1754086241236,-460.0,0.00019523,2]
[376704458,1754086241246,-460.0,0.00019523,2]
[376704460,1754086241255,-479.46,0.00019523,2]
[376704462,1754086241265,-460.0,0.00019523,2]
[376704464,1754086241274,-460.0,0.00019523,2]
[376704466,1754086241283,-536.7,0.00019523,2]
[376704483,1754086241430,-460.0,0.00019523,2]
[376704485,1754086241443,-464.6,0.00019523,2]
[376704487,1754086241453,-460.0,0.00019523,2]
[376704489,1754086241462,-460.0,0.00019523,2]
[376704491,1754086241471,-460.0,0.00019523,2]
[376704493,1754086241481,-460.0,0.00019523,2]
[376704495,1754086241490,-460.0,0.00019523,2]
[376704497,1754086241500,-460.0,0.00019523,2]
[376704499,1754086241509,-460.0,0.00019523,2]
[376704501,1754086241519,-1879.46,0.00019523,2]
[376704503,1754086241528,-274.88781059,0.00019523,2]
[376704505,1754086241538,-460.0,0.00019523,2]
[376704507,1754086241547,-678.94,0.00019523,2]
[376704509,1754086241557,-654.24,0.00019523,2]
[376704511,1754086241566,-460.0,0.00019523,2]
[376704513,1754086241576,-460.0,0.00019523,2]
[376704515,1754086241585,-1133.61,0.00019523,2]
[376704517,1754086241595,-462.68571048,0.00019523,2]
[376704519,1754086241604,-460.0,0.00019523,2]
[376704521,1754086241614,-375.5933072,0.00019523,2]
[376704523,1754086241624,-460.0,0.00019523,2]
[376704525,1754086241634,-554.29,0.00019523,2]
[376704527,1754086241644,-462.75,0.00019523,2]
[376704529,1754086241654,-526.63989375,0.00019523,2]
[376704531,1754086241663,-460.0,0.00019523,2]
[376704533,1754086241672,-151.0,0.00019524,2]
[376704535,1754086241683,-151.0,0.00019524,2]
[376704537,1754086241693,-151.0,0.00019524,2]
[376704539,1754086241702,-151.0,0.00019524,2]
[376704541,1754086241711,-151.0,0.00019524,2]
[376704542,1754086241721,-151.0,0.00019524,2]
[376704544,1754086241730,-151.0,0.00019524,2]
[376704547,1754086241740,-713.0,0.00019524,2]
[376704548,1754086241749,-198.0,0.00019524,2]
[376704550,1754086241760,-151.0,0.00019524,2]
[376704553,1754086241769,-245.0,0.00019524,2]
[376704554,1754086241778,-460.0,0.00019524,2]
[376704556,1754086241788,-460.0,0.00019524,2]
[376704558,1754086241797,-453.83520969,0.00019524,2]
[376704560,1754086241806,-424.09753513,0.00019524,2]
[376704562,1754086241816,-460.0,0.00019524,2]
[376704565,1754086241827,-460.0,0.00019524,2]
[376704566,1754086241836,-460.0,0.00019524,2]
[376704569,1754086241846,-460.0,0.00019524,2]
[376704570,1754086241855,-460.0,0.00019524,2]
[376704573,1754086241864,-460.0,0.00019524,2]
[376704575,1754086241874,-542.12,0.00019524,2]
[376704577,1754086241883,-460.0,0.00019524,2]
[376704579,1754086241892,-460.0,0.00019524,2]
[376704581,1754086241902,-460.0,0.00019524,2]
[376704583,1754086241911,-460.0,0.00019524,2]
[376704585,1754086241920,-460.0,0.00019524,2]
[376704587,1754086241929,-400.45632677,0.00019524,2]
[376704589,1754086241946,-59.54367323,0.00019524,2]
[376704591,1754086241956,-460.0,0.00019524,2]
[376704593,1754086241966,-460.0,0.00019524,2]
[376704595,1754086241977,-460.0,0.00019524,2]